bitfinex-derivatives/quotes_ETHF0:USTF0_20250430
["timestamp","ask_amount","ask_price","bid_price","bid_amount"]
[1745987352416,1.5741,1811.5,1811.4,1.10384]
[1745987352718,1.5741,1811.5,1811.4,5.39461991]
[1745987353213,5.4021,1811.5,1811.4,5.39461991]
[1745987353520,5.4021,1811.5,1811.4,3.564]
[1745987354120,8.6099,1811.5,1811.4,3.564]
[1745987355822,8.6099,1811.5,1811.4,4.66784]
[1745987357124,9.71368,1811.5,1811.4,3.564]
[1745987357323,9.71368,1811.5,1811.4,4.66784]
[1745987358120,8.6099,1811.5,1811.4,4.66784]
[1745987358924,9.71368,1811.5,1811.4,4.66784]
[1745987360422,6.50588,1811.5,1811.4,4.66784]
[1745987360625,9.71368,1811.5,1811.4,4.66784]
[1745987364925,9.71827904,1811.5,1811.4,4.66784]
[1745987368826,9.71827904,1811.5,1811.4,3.564]
[1745987369627,6.51047904,1811.5,1811.4,3.564]
[1745987369814,9.71827904,1811.5,1811.4,3.564]
[1745987370019,9.71827904,1811.5,1811.4,4.66784]
[1745987370219,9.71827904,1811.5,1811.4,3.564]
[1745987371628,9.71827904,1811.5,1811.4,4.66784]
[1745987372028,9.71827904,1811.5,1811.4,3.564]
[1745987372226,9.71827904,1811.5,1811.4,4.66784]
[1745987372426,9.71827904,1811.5,1811.4,3.564]
[1745987374529,9.71827904,1811.5,1811.4,4.66784]
[1745987375431,9.71827904,1811.5,1811.4,3.564]
[1745987376423,9.71827904,1811.5,1811.4,4.66784]
[1745987376623,9.71827904,1811.5,1811.4,3.564]
[1745987379533,1.10394,1811.3,1811.1,9.50977]
[1745987379833,1.10396,1811.2,1811.1,9.50977]
[1745987380735,1.10396,1811.2,1811.1,6.7708]
[1745987381033,2.75356,1811.2,1811.1,7.87482]
[1745987381233,6.58156,1811.2,1811.1,9.55802]
[1745987381433,6.58156,1811.2,1811.1,8.454]
[1745987382035,6.58156,1811.2,1811.1,9.55802]
[1745987382334,4.93196,1811.2,1811.1,9.55802]
[1745987383534,4.93196,1811.2,1811.1,8.454]
[1745987384133,4.93196,1811.2,1811.1,9.55802]
[1745987386929,6.66946,1811.2,1811.1,8.454]
[1745987387132,6.66946,1811.2,1811.1,3.563]
[1745987388239,5.5655,1811.2,1811.0,3.56387]
[1745987388539,1.7375,1811.1,1811.0,3.56387]
[1745987388739,2.84152,1811.1,1811.0,3.56387]
[1745987391137,1.7375,1811.1,1811.0,3.56387]
[1745987392342,2.84152,1811.1,1811.0,3.56387]
[1745987395044,1.7375,1811.1,1811.0,3.56387]
[1745987395238,1.10399,1811.2,1811.1,1.10402]
[1745987395435,2.81149,1811.2,1811.1,2.84002]
[1745987396244,6.63949,1811.2,1811.1,2.84002]
[1745987396748,6.63949,1811.2,1811.1,1.736]
[1745987397048,1.10402,1811.1,1811.0,1.95673]
[1745987397246,2.68662,1811.1,1811.0,1.10403]
[1745987397549,4.93196,1811.2,1811.1,1.10402]
[1745987397744,7.38076,1811.2,1811.1,1.10402]
[1745987398147,3.55276,1811.2,1811.1,1.10402]
[1745987398648,3.55276,1811.2,1811.0,2.75873]
[1745987398848,2.68662,1811.1,1811.0,2.75873]
[1745987399346,1.5826,1811.1,1811.0,2.75873]
[1745987400049,2.68662,1811.1,1811.0,2.75873]
[1745987400850,1.5826,1811.1,1811.0,2.75873]
[1745987403148,2.68662,1811.1,1811.0,2.75873]
[1745987403350,1.5826,1811.1,1811.0,2.75873]
[1745987404850,1.5826,1811.1,1811.0,1.10403]
[1745987407343,1.5826,1811.1,1811.0,2.76803]
[1745987407545,0.8662,1811.2,1811.1,1.10402]
[1745987407851,0.8662,1811.2,1811.1,3.59552]
[1745987408352,2.5721,1811.2,1811.1,3.59552]
[1745987410550,2.5721,1811.2,1811.1,1.10402]
[1745987411552,3.21239904,1811.5,1811.2,1.10396]
[1745987411854,0.00459904,1811.5,1811.4,1.10384]
[1745987412348,1.72309904,1811.5,1811.4,1.10384]
[1745987412548,1.72309904,1811.5,1811.4,2.73334]
[1745987424257,0.00459904,1811.5,1811.4,2.73334]
[1745987426653,0.00459904,1811.5,1811.4,1.10384]
[1745987426853,1.68819904,1811.5,1811.4,1.10384]
[1745987429163,5.51619904,1811.5,1811.4,1.10384]
[1745987430155,1.68819904,1811.5,1811.4,1.10384]
[1745987431155,5.51619904,1811.5,1811.4,1.10384]
[1745987432358,5.51619904,1811.5,1811.1,3.2078]
[1745987432665,3.60308,1811.4,1811.2,4.63195]
[1745987432857,2.5941,1811.3,1811.2,4.63195]
[1745987433259,6.4221,1811.3,1811.2,4.63195]
[1745987435869,7.526,1811.3,1811.2,4.63195]
[1745987436162,6.4221,1811.3,1811.2,4.63195]
[1745987436364,7.526,1811.3,1811.2,4.63195]
[1745987439969,7.526,1811.3,1811.2,1.10395]
[1745987442968,7.53019959,1811.3,1811.2,1.10395]
[1745987444166,6.42629959,1811.3,1810.9,3.2078]
[1745987444372,1.10413,1811.0,1810.9,1.10412]
[1745987445274,6.2642,1811.0,1810.9,1.10412]
[1745987445868,7.36828,1811.0,1810.9,1.10412]
[1745987446475,6.2642,1811.0,1810.9,1.10412]
[1745987447177,7.36828,1811.0,1810.9,1.10412]
[1745987450576,6.2642,1811.0,1810.9,1.10412]
[1745987455079,7.36828,1811.0,1810.9,1.10412]
[1745987455377,6.2642,1811.0,1810.9,1.10412]
[1745987456873,1.10414,1810.9,1810.8,3.525]
[1745987457073,6.74994,1810.9,1810.8,3.525]
[1745987457267,10.57794,1810.9,1810.7,1.10422]
[1745987457583,1.10429,1810.7,1810.5,8.4105]
[1745987457773,3.2439,1810.6,1810.5,9.51489]
[1745987458579,3.2439,1810.6,1810.5,6.30709]
[1745987459977,3.2439,1810.6,1810.5,4.62939]
[1745987462083,4.34823,1810.6,1810.5,4.62939]
[1745987462887,3.2439,1810.6,1810.5,4.62939]
[1745987463082,7.0719,1810.6,1810.5,4.62939]
[1745987464289,6.2703,1810.6,1810.5,4.62939]
[1745987465088,2.4423,1810.6,1810.5,4.62939]
[1745987468793,2.4423,1810.6,1810.5,5.48149]
[1745987471689,2.4423,1810.6,1810.5,4.62939]
[1745987471890,3.267,1810.6,1810.5,4.62939]
[1745987472086,7.095,1810.6,1810.5,4.62939]
[1745987475401,3.828,1810.6,1810.5,4.62939]
[1745987475602,3.828,1810.6,1810.5,6.20999]
[1745987476100,1.625,1810.7,1810.6,1.10433]
[1745987480107,5.453,1810.7,1810.6,1.10433]
[1745987483507,6.55726,1810.7,1810.6,1.10433]
[1745987484301,5.453,1810.7,1810.6,1.10433]
[1745987485105,6.55726,1810.7,1810.6,1.10433]
[1745987488502,1.10433,1810.6,1810.5,4.62934]
[1745987488710,3.61103,1810.6,1810.5,4.62934]
[1745987489303,7.43903,1810.6,1810.5,4.62934]
[1745987489802,6.3347,1810.6,1810.5,4.62934]
[1745987491999,6.3347,1810.6,1810.5,6.31014]
[1745987500419,2.5067,1810.6,1810.5,6.31014]
[1745987503623,2.5067,1810.6,1810.5,4.62934]
[1745987509022,2.5067,1810.6,1810.2,5.6981]
[1745987509228,3.2078,1810.4,1810.1,7.34487829]
[1745987509527,3.59126,1810.3,1810.2,1.10457]
[1745987510223,7.41926,1810.3,1810.2,1.10457]
[1745987512128,6.3147,1810.3,1810.2,1.10457]
[1745987513228,7.41921,1810.3,1810.2,1.10457]
[1745987516233,1.10461,1810.2,1810.1,1.10461]
[1745987516531,3.65221,1810.2,1810.1,1.10461]
[1745987517128,7.48021,1810.2,1810.1,1.10461]
[1745987520028,6.3756,1810.2,1810.1,1.10461]
[1745987521133,7.48017,1810.2,1810.1,1.10461]
[1745987522436,6.3756,1810.2,1810.1,1.10461]
[1745987524446,7.48017,1810.2,1810.1,1.10461]
[1745987529648,7.48017,1810.2,1810.0,3.524]
[1745987529649,1.10473,1810.0,1809.9,1.10472]
[1745987530146,4.93273,1810.0,1809.9,1.10472]
[1745987530447,5.4615,1810.0,1809.9,1.10472]
[1745987532837,6.56619,1810.0,1809.9,1.10472]
[1745987533037,5.4615,1810.0,1809.9,1.10472]
[1745987535143,1.10491,1809.7,1809.5,1.10497]
[1745987535342,0.8693,1809.6,1809.3,2.487]
[1745987535546,3.2838,1809.6,1809.4,1.6557]
[1745987536051,3.2838,1809.6,1809.5,1.105]
[1745987536349,7.1118,1809.6,1809.5,1.105]
[1745987542551,6.2425,1809.6,1809.5,1.105]
[1745987542849,3.828,1809.6,1809.5,1.105]
[1745987543150,2.4474,1810.0,1809.9,1.10475]
[1745987543452,0.7946,1810.2,1810.1,1.10463]
[1745987543657,3.242,1810.2,1810.1,1.10463]
[1745987544254,7.07,1810.2,1810.1,1.10463]
[1745987545151,6.2754,1810.2,1810.1,4.62863]
[1745987545354,3.828,1810.2,1810.1,4.62863]
[1745987546253,1.7131,1810.3,1810.2,1.10457]
[1745987546554,1.7131,1810.3,1810.2,2.80067]
[1745987554360,3.2078,1810.5,1810.2,12.5981]
[1745987554669,3.2078,1810.5,1810.4,1.10445]
[1745987554866,3.2078,1810.5,1810.4,4.62745]
[1745987555062,10.3322,1810.7,1810.6,1.10433]
[1745987555367,10.3322,1810.7,1810.5,1.628]
[1745987555368,4.40066,1810.7,1810.5,1.628]
[1745987555571,4.40066,1810.7,1810.5,2.73234]
[1745987555868,1.6477,1810.6,1810.5,2.73234]
[1745987558363,4.0068,1810.7,1810.6,1.10433]
[1745987558667,5.7333,1810.7,1810.6,1.10433]
[1745987559065,9.5613,1810.7,1810.6,1.10433]
[1745987559674,9.5613,1810.7,1810.5,2.73234]
[1745987559863,2.5917,1810.6,1810.5,2.73234]
[1745987563576,3.2078,1810.9,1810.8,1.1042]
[1745987563775,5.6556,1810.9,1810.8,1.1042]
[1745987565472,2.4478,1810.9,1810.8,1.1042]
[1745987567275,2.4478,1810.9,1810.8,2.847]
[1745987569572,2.4478,1810.9,1810.8,6.0548]
[1745987579984,2.4478,1810.9,1810.8,4.312]
[1745987580282,2.4478,1810.9,1810.8,5.94]
[1745987581385,3.2078,1811.3,1811.2,1.10396]
[1745987581788,4.31161,1811.5,1811.4,1.10384]
[1745987581986,3.2078,1811.5,1811.4,1.10384]
[1745987582181,7.0358,1811.5,1811.4,1.10384]
[1745987582383,8.13958,1811.5,1811.4,1.10384]
[1745987583188,7.0358,1811.5,1811.4,1.10384]
[1745987583380,8.1396,1811.5,1811.4,1.10384]
[1745987583775,7.0358,1811.5,1811.4,1.10384]
[1745987584179,8.7515,1811.5,1811.4,1.10384]
[1745987584983,9.85528,1811.5,1811.4,1.10384]
[1745987585286,8.7515,1811.5,1811.4,1.10384]
[1745987585486,9.85528,1811.5,1811.4,1.10384]
[1745987586286,8.7515,1811.5,1811.4,1.10384]
[1745987586483,5.5437,1811.5,1811.4,1.10384]
[1745987586683,5.5437,1811.5,1811.4,4.62384]
[1745987587081,6.64748,1811.5,1811.4,3.52]
[1745987587779,5.5437,1811.5,1811.2,1.10392]
[1745987587984,1.10401,1811.2,1811.1,3.52]
[1745987588184,4.93201,1811.2,1811.1,3.52]
[1745987588985,4.93201,1811.2,1811.1,4.62402]
[1745987594191,4.93201,1811.2,1811.1,3.52]
[1745987594995,1.10414,1811.0,1810.8,3.2078]
[1745987595289,0.8029,1810.9,1810.8,7.832]
[1745987595482,2.4152,1810.9,1810.8,7.832]
[1745987596190,6.2432,1810.9,1810.8,7.832]
[1745987596783,5.4403,1810.9,1810.8,7.832]
[1745987596988,5.4403,1810.9,1810.8,8.6335]
[1745987597193,1.6123,1810.9,1810.8,8.6335]
[1745987597394,1.6123,1810.9,1810.8,10.2189]
[1745987597792,1.6171,1811.1,1811.0,1.10408]
[1745987597996,3.2737,1811.1,1811.0,1.10408]
[1745987599188,7.1017,1811.1,1811.0,1.10408]
[1745987603700,3.828,1811.1,1811.0,2.72748]
[1745987603900,3.828,1811.1,1811.0,3.57548]
[1745987604091,3.4715,1811.5,1811.4,1.10384]
[1745987604291,2.83178,1811.5,1811.4,1.10384]
[1745987604598,1.10384,1811.4,1811.3,1.10386]
[1745987605101,3.828,1811.4,1811.3,1.10386]
[1745987605797,7.0358,1811.4,1811.3,1.10386]
[1745987605998,8.13964,1811.4,1811.3,1.10386]
[1745987606599,7.0358,1811.4,1811.3,1.10386]
[1745987608095,7.0358,1811.4,1811.3,2.69036]
[1745987609101,7.0358,1811.4,1811.3,1.10386]
[1745987613100,7.0358,1811.4,1811.3,2.71546]
[1745987617609,3.828,1811.4,1811.3,2.71546]
[1745987618204,1.728,1811.5,1811.4,1.10384]
[1745987618802,1.728,1811.5,1811.4,2.74274]
[1745987619110,5.556,1811.5,1811.4,2.74274]
[1745987621012,3.828,1811.5,1811.4,2.74274]
[1745987621311,1.6195,1811.7,1811.6,1.10372]
[1745987621914,3.2967,1811.7,1811.6,1.10372]
[1745987622117,7.1247,1811.7,1811.6,1.10372]
[1745987626507,8.22835,1811.7,1811.6,1.10372]
[1745987626915,7.1247,1811.7,1811.6,1.10372]
[1745987641634,3.828,1811.7,1811.6,1.10372]
[1745987641834,3.828,1811.7,1811.6,2.81262]
[1745987642037,3.828,1811.7,1811.6,3.60372]
[1745987642237,1.6423,1811.9,1811.8,1.10359]
[1745987643236,5.4703,1811.9,1811.8,1.10359]
[1745987650435,5.4703,1811.9,1811.5,12.6278]
[1745987650631,1.10365,1811.7,1811.6,1.10369]
[1745987650835,1.10383,1811.5,1811.2,10.86087829]
[1745987651031,2.4555,1811.4,1811.3,1.1039]
[1745987652147,1.1039,1811.3,1811.2,10.86087829]
[1745987652446,2.3906,1811.3,1811.2,11.96483829]
[1745987653244,3.2078,1811.5,1811.4,1.10384]
[1745987653845,4.8139,1811.5,1811.4,1.10384]
[1745987654241,8.6419,1811.5,1811.4,1.10384]
[1745987654746,10.2718,1811.5,1811.4,1.10384]
[1745987655743,6.2487,1811.5,1811.4,1.10384]
[1745987656842,3.828,1811.5,1811.4,1.10384]
[1745987657035,3.828,1811.5,1811.4,2.77004]
[1745987657240,3.2078,1811.7,1811.6,1.10372]
[1745987657443,4.8377,1811.7,1811.6,1.10372]
[1745987657844,5.94138,1811.7,1811.5,3.516]
[1745987658042,1.6455,1811.6,1811.5,4.61974]
[1745987658645,3.828,1811.7,1811.6,1.10372]
[1745987658842,3.828,1811.7,1811.6,2.76492]
[1745987661239,0.796,1811.8,1811.7,1.10365]
[1745987661439,0.796,1811.8,1811.7,2.69955]
[1745987662051,4.624,1811.8,1811.7,2.69955]
[1745987662750,6.2069,1811.8,1811.7,2.69955]
[1745987666352,6.2069,1811.8,1811.7,1.10365]
[1745987674257,6.21209805,1811.8,1811.7,1.10365]
[1745987679759,7.31568805,1811.8,1811.7,1.10365]
[1745987679956,14.41989805,1811.8,1811.5,4.61973]
[1745987680157,2.69355,1811.7,1811.5,4.61973]
[1745987680356,1.5899,1811.6,1811.5,4.61973]
[1745987680561,2.4301,1811.6,1811.5,4.61973]
[1745987681161,6.2581,1811.6,1811.5,4.61973]
[1745987682664,6.2581,1811.6,1811.5,1.10373]
[1745987683064,7.36182,1811.6,1811.5,1.10373]
[1745987685368,1.10378,1811.5,1811.4,4.31159]
[1745987685667,2.4506,1811.5,1811.4,4.31159]
[1745987685872,3.55438,1811.5,1811.4,4.31159]
[1745987686168,7.38238,1811.5,1811.4,4.31159]
[1745987686371,7.38238,1811.5,1811.4,1.10384]
[1745987690967,6.2786,1811.5,1811.4,1.10384]
[1745987691172,4.6595,1811.5,1811.4,1.10384]
[1745987691374,4.6595,1811.5,1811.4,2.68604]
[1745987691771,5.76328,1811.5,1811.4,2.68604]
[1745987691973,4.6595,1811.5,1811.4,2.68604]
[1745987692272,6.3216,1811.5,1811.4,2.68604]
[1745987692461,7.42538,1811.5,1811.4,2.68604]
[1745987692665,6.3216,1811.5,1811.4,2.68604]
[1745987693065,7.42538,1811.5,1811.4,2.68604]
[1745987693473,6.3216,1811.5,1811.4,2.68604]
[1745987694974,7.42538,1811.5,1811.4,2.68604]
[1745987695275,6.3216,1811.5,1811.4,2.68604]
[1745987696776,6.3216,1811.5,1811.4,1.10384]
[1745987699984,7.42538,1811.5,1811.4,1.10384]
[1745987700275,6.3216,1811.5,1811.4,1.10384]
[1745987700471,7.42538,1811.5,1811.4,1.10384]
[1745987700680,6.3216,1811.5,1811.4,1.10384]
[1745987701581,6.3216,1811.5,1811.2,3.2078]
[1745987701769,1.1039,1811.3,1811.2,1.10396]
[1745987702380,7.3578,1811.3,1811.2,1.10396]
[1745987703882,1.10396,1811.2,1811.1,3.514]
[1745987704078,3.57136,1811.2,1811.1,3.514]
[1745987704375,7.39936,1811.2,1811.1,3.514]
[1745987705180,7.39936,1811.2,1811.1,4.61798]
[1745987707587,3.828,1811.2,1811.1,4.61798]
[1745987707774,3.828,1811.2,1811.1,11.31118]
[1745987708282,2.5758,1811.5,1811.4,1.10384]
[1745987708684,3.67958,1811.5,1811.4,1.10384]
[1745987708878,2.5758,1811.5,1811.4,1.10384]
[1745987709184,6.4038,1811.5,1811.4,1.10384]
[1745987715484,6.4038,1811.5,1811.3,2.79705]
[1745987715685,5.7566,1811.4,1811.3,1.10385]
[1745987715989,6.86049,1811.4,1811.3,1.1039]
[1745987716189,10.68849,1811.4,1811.3,1.1039]
[1745987725497,7.48069,1811.4,1811.3,1.1039]
[1745987725691,10.68849,1811.4,1811.3,1.1039]
[1745987739315,10.68849,1811.4,1811.2,2.71712]
[1745987739316,1.1039,1811.3,1811.2,2.71712]
[1745987739508,2.8184,1811.3,1811.2,2.71712]
[1745987740114,6.6464,1811.3,1811.2,2.71712]
[1745987746721,1.10396,1811.2,1811.1,3.514]
[1745987746924,3.55226,1811.2,1811.1,1.10402]
[1745987747225,7.38026,1811.2,1811.1,1.10402]
[1745987747427,7.38026,1811.2,1811.1,2.81512]
[1745987750022,7.38425983,1811.2,1811.1,2.81512]
[1745987753625,7.38425983,1811.2,1811.1,1.7111]
[1745987755025,7.38425983,1811.2,1811.1,2.81512]
[1745987757323,1.10415,1811.0,1810.9,3.2078]
[1745987757526,1.10414,1810.9,1810.8,6.32058]
[1745987757822,1.96144,1810.9,1810.8,6.32058]
[1745987758126,5.78944,1810.9,1810.8,6.32058]
[1745987760323,1.10426,1810.7,1810.6,7.34487829]
[1745987760522,1.10426,1810.7,1810.6,1.6816]
[1745987760925,1.10426,1810.7,1810.6,2.78593]
[1745987761119,4.93226,1810.7,1810.6,2.78593]
[1745987765028,4.93226,1810.7,1810.6,1.6816]
[1745987765229,6.54236,1810.7,1810.6,1.6816]
[1745987765823,1.10433,1810.6,1810.5,3.511]
[1745987766022,4.36863,1810.6,1810.5,6.23459]
[1745987766231,8.19663,1810.6,1810.5,6.23459]
[1745987772132,4.6151,1810.6,1810.5,6.23459]
[1745987772423,4.6151,1810.6,1810.1,6.7198]
[1745987772424,7.37593,1810.6,1810.1,6.7198]
[1745987772620,1.10445,1810.4,1810.3,1.5817]
[1745987773026,1.10457,1810.2,1810.1,0.8549]
[1745987773226,1.10457,1810.2,1810.1,2.68633]
[1745987773532,1.10457,1810.2,1810.1,1.5817]
[1745987773833,2.79067,1810.2,1810.1,1.5817]
[1745987774223,6.61867,1810.2,1810.1,1.5817]
[1745987774432,1.10463,1810.1,1810.0,3.512]
[1745987774632,3.63263,1810.1,1810.0,3.512]
[1745987775129,7.46063,1810.1,1810.0,3.512]
[1745987776725,7.46063,1810.1,1810.0,4.61669]
[1745987776930,7.46063,1810.1,1810.0,5.2211]
[1745987777132,7.46063,1810.1,1810.0,1.7091]
[1745987778227,7.46063,1810.1,1810.0,2.81379]
[1745987778428,7.46063,1810.1,1810.0,1.7091]
[1745987779231,3.63263,1810.1,1810.0,1.7091]
[1745987780231,1.10469,1810.0,1809.9,1.1047]
[1745987780432,3.65189,1810.0,1809.9,1.1047]
[1745987781230,7.47989,1810.0,1809.9,1.1047]
[1745987782236,1.10475,1809.9,1809.8,2.82227]
[1745987782731,7.47994,1810.0,1809.9,1.10475]
[1745987786838,1.10475,1809.9,1809.8,2.82228]
[1745987788631,1.91195,1809.9,1809.8,2.82228]
[1745987788827,3.56035,1809.9,1809.8,2.82228]
[1745987800451,2.4556,1809.9,1809.8,2.82228]
[1745987802148,3.56035,1809.9,1809.8,2.82228]
[1745987804050,2.4556,1809.9,1809.8,2.82228]
[1745987804943,3.56035,1809.9,1809.8,2.82228]
[1745987807946,2.4556,1809.9,1809.8,2.82228]
[1745987809349,3.56035,1809.9,1809.8,2.82228]
[1745987809552,3.56035,1809.9,1809.8,2.82231]
[1745987809751,3.56035,1809.9,1809.8,1.10481]
[1745987810249,7.38835,1809.9,1809.8,1.10481]
[1745987811152,1.10481,1809.8,1809.7,6.26403]
[1745987811452,2.71381,1809.8,1809.7,4.61783]
[1745987812753,2.71381,1809.8,1809.7,1.10483]
[1745987813954,1.10487,1809.7,1809.6,1.10494]
[1745987814251,8.32177,1809.7,1809.6,1.10494]
[1745987815252,4.49377,1809.7,1809.6,1.10494]
[1745987815846,1.10494,1809.6,1809.5,9.51745]
[1745987816054,2.82464,1809.6,1809.5,9.51745]
[1745987819654,2.82464,1809.6,1809.5,3.512]
[1745987820156,6.65264,1809.6,1809.5,4.617]
[1745987820456,6.65264,1809.6,1809.5,3.512]
[1745987820655,6.65264,1809.6,1809.5,4.617]
[1745987821656,6.65264,1809.6,1809.5,3.512]
[1745987822548,6.65264,1809.6,1809.5,5.0966]
[1745987822750,1.10516,1809.3,1809.2,4.61615]
[1745987823150,4.93316,1809.3,1809.2,4.61615]
[1745987823651,7.43626,1809.3,1809.2,4.61615]
[1745987825157,3.828,1809.3,1809.2,4.61615]
[1745987825359,3.828,1809.3,1809.2,5.46085]
[1745987826250,2.73957,1809.4,1809.3,1.10512]
[1745987826451,2.73957,1809.4,1809.3,2.78302]
[1745987828456,4.36727,1809.4,1809.3,2.78302]
[1745987829756,1.6345,1809.4,1809.3,2.78302]
[1745987830057,1.6345,1809.4,1809.3,3.62842]
[1745987830058,0.8108,1809.4,1809.3,3.62842]
[1745987830458,2.4186,1809.6,1809.5,1.105]
[1745987830659,3.2647,1809.6,1809.5,1.105]
[1745987831361,8.19764,1809.6,1809.5,1.105]
[1745987832156,7.0927,1809.6,1809.5,1.105]
[1745987833161,3.2647,1809.6,1809.5,1.105]
[1745987833362,4.36964,1809.6,1809.5,1.105]
[1745987833762,3.2647,1809.6,1809.5,1.105]
[1745987836763,0.8461,1809.6,1809.5,1.105]
[1745987836960,0.8461,1809.6,1809.5,1.9066]
[1745987837163,2.4448,1809.8,1809.5,4.3126]
[1745987837364,2.4448,1809.8,1809.7,1.10487]
[1745987838960,0.7901,1809.8,1809.7,1.10487]
[1745987839154,0.7901,1809.8,1809.7,1.90647]
[1745987839361,4.8566,1809.9,1809.8,1.10481]
[1745987839559,4.8566,1809.9,1809.8,2.70241]
[1745987840059,1.6488,1809.9,1809.8,2.70241]
[1745987840263,5.14663,1810.1,1810.0,1.10469]
[1745987840461,6.00413,1810.1,1810.0,1.10469]
[1745987840661,7.67913,1810.1,1810.0,1.10469]
[1745987841162,11.50713,1810.1,1810.0,2.68539]
[1745987842269,11.50713,1810.1,1810.0,1.5807]
[1745987842975,11.50713,1810.1,1810.0,2.68539]
[1745987844271,7.67913,1810.1,1810.0,2.68539]
[1745987845379,1.10469,1810.0,1809.9,1.10474]
[1745987845567,2.75629,1810.0,1809.9,1.10474]
[1745987849571,1.6516,1810.0,1809.9,1.10474]
[1745987849876,2.75629,1810.0,1809.9,2.84374]
[1745987852976,2.75629,1810.0,1809.9,1.10474]
[1745987859991,1.6516,1810.0,1809.9,1.10474]
[1745987860190,1.6516,1810.0,1809.9,2.70404]
[1745987860691,2.75629,1810.0,1809.9,2.70404]
[1745987862191,1.10475,1809.9,1809.8,4.61376]
[1745987862491,3.52765,1809.9,1809.8,4.61376]
[1745987863293,2.4229,1809.9,1809.8,4.61376]
[1745987863792,2.4229,1809.9,1809.8,6.31946]
[1745987863987,2.4229,1809.9,1809.8,4.61376]
[1745987864291,3.52765,1809.9,1809.8,4.61376]
[1745987867197,7.35565,1809.9,1809.8,4.61376]
[1745987867892,6.2509,1809.9,1809.8,4.61376]
[1745987868390,7.35565,1809.9,1809.8,4.61376]
[1745987876595,7.35565,1809.9,1809.8,6.23566]
[1745987878802,7.35565,1809.9,1809.8,2.72666]
[1745987880904,3.828,1809.9,1809.8,5.93446]
[1745987881207,4.0653,1810.1,1810.0,1.10469]
[1745987881605,4.0653,1810.1,1810.0,2.68839]
[1745987882399,0.8575,1810.1,1810.0,2.68839]
[1745987882701,0.8072,1810.4,1810.0,4.7915]
[1745987883006,2.5648,1810.5,1810.4,1.10445]
[1745987883205,4.49479,1810.5,1810.4,1.10445]
[1745987883410,3.3904,1810.5,1810.4,1.10445]
[1745987883708,0.8671,1810.5,1810.4,1.10445]
[1745987884107,11.01352192,1810.6,1810.5,1.10439]
[1745987886204,14.84152192,1810.6,1810.5,1.10439]
[1745987887014,3.828,1810.6,1810.5,1.10439]
[1745987887212,3.59287,1810.7,1810.6,1.10433]
[1745987888115,7.42087,1810.7,1810.6,1.10433]
[1745987890614,6.3166,1810.7,1810.6,1.10433]
[1745987890813,7.42086,1810.7,1810.6,1.10433]
[1745987891113,7.42089,1810.7,1810.6,1.10433]
[1745987898014,1.10434,1810.6,1810.5,1.10436]
[1745987898213,2.73244,1810.6,1810.5,1.10436]
[1745987899317,6.56044,1810.6,1810.5,1.10436]
[1745987900518,5.4561,1810.6,1810.5,1.10436]
[1745987900918,6.56043,1810.6,1810.5,1.10436]
[1745987905715,1.10439,1810.5,1810.4,2.6928]
[1745987905921,4.48089,1810.5,1810.4,2.6928]
[1745987911320,8.30889,1810.5,1810.4,2.6928]
[1745987912419,4.48089,1810.5,1810.4,2.6928]
[1745987915322,1.10451,1810.3,1810.2,7.81634]
[1745987915628,1.10451,1810.3,1810.2,4.60854]
[1745987916014,1.97501,1810.3,1810.2,4.60854]
[1745987916419,1.97501,1810.3,1810.2,3.504]
[1745987918430,1.10457,1810.2,1810.1,2.68759]
[1745987918729,3.66667,1810.2,1810.1,2.68759]
[1745987920030,5.7699,1810.2,1810.0,1.10468]
[1745987920329,3.63909,1810.1,1810.0,1.10468]
[1745987920518,3.63909,1810.1,1810.0,2.74408]
[1745987920725,2.5344,1810.1,1810.0,2.74408]
[1745987920931,5.13432,1810.2,1810.1,1.10463]
[1745987921128,5.13432,1810.2,1810.1,2.74403]
[1745987921633,6.87412,1810.2,1810.1,1.6394]
[1745987923438,1.10469,1810.0,1809.9,3.504]
[1745987924235,2.81459,1810.0,1809.9,3.504]
[1745987926429,1.10475,1809.9,1809.8,2.75131]
[1745987926630,4.36235,1809.9,1809.8,2.75131]
[1745987929035,4.36235,1809.9,1809.8,1.6465]
[1745987929538,1.10481,1809.8,1809.7,1.10487]
[1745987929736,2.70321,1809.8,1809.7,2.70397]
[1745987940151,1.10481,1809.8,1809.7,2.70397]
[1745987943148,2.79381,1809.8,1809.7,2.70397]
[1745987945448,2.79381,1809.8,1809.7,1.10487]
[1745987949045,1.10487,1809.7,1809.6,6.2452]
[1745987949251,3.53477,1809.7,1809.6,6.2452]
[1745987950851,3.53477,1809.7,1809.6,3.505]
[1745987951449,3.53477,1809.7,1809.6,4.60994]
[1745987952055,3.53477,1809.7,1809.6,1.10494]
[1745987958367,1.10494,1809.6,1809.5,2.76605]
[1745987958567,3.48354,1809.6,1809.5,2.76605]
[1745987961571,3.48354,1809.6,1809.5,1.6611]
[1745987961774,3.48354,1809.6,1809.4,1.10503]
[1745987961775,1.105,1809.5,1809.4,1.10503]
[1745987962068,3.54,1809.5,1809.4,1.10503]
[1745987962371,3.54,1809.5,1809.4,2.69433]
[1745987962771,3.54,1809.5,1809.3,4.0291]
[1745987962772,1.10506,1809.4,1809.3,4.31288]